bitfinex/quotes_ETHUSD_20250110
["timestamp","ask_amount","ask_price","bid_price","bid_amount"]
[1736467200803,0.8071,3225.2,3223.3,0.8263]
[1736467202884,0.8071,3225.2,3223.6,0.25]
[1736467203082,0.8071,3225.2,3223.7,0.7853]
[1736467203493,0.25,3225.1,3223.0,0.69114685]
[1736467203988,0.25,3225.1,3224.1,2.93015545]
[1736467205591,0.25,3224.9,3224.1,2.93015545]
[1736467206289,0.8218,3224.8,3223.5,14.05]
[1736467206439,1.0718,3224.8,3223.5,16.98015545]
[1736467206640,0.8218,3224.6,3223.5,14.05]
[1736467207483,0.8218,3224.6,3224.0,2.93015545]
[1736467207642,0.8218,3224.6,3224.3,2.93015545]
[1736467207843,0.8218,3224.6,3224.4,0.03100783]
[1736467208042,0.7936,3225.0,3224.4,0.03100783]
[1736467209070,0.7743,3225.3,3224.6,2.93015545]
[1736467209410,1.0243,3225.5,3224.9,2.93015545]
[1736467209700,0.8166,3225.8,3225.0,0.03099927]
[1736467209842,0.8166,3225.8,3225.2,2.93015545]
[1736467210042,0.8166,3226.5,3225.5,2.93015545]
[1736467210356,0.8166,3226.5,3226.0,2.93015545]
[1736467210559,0.8166,3226.5,3226.1,0.03099001]
[1736467210761,0.8166,3226.8,3226.1,0.03099001]
[1736467211139,0.25,3226.8,3226.1,0.78849001]
[1736467211883,0.25,3226.8,3226.1,0.03099001]
[1736467212100,0.25,3226.8,3225.7,3.68765545]
[1736467212591,0.25,3226.6,3225.7,3.68765545]
[1736467214012,0.25,3226.6,3225.8,0.03099155]
[1736467214477,0.7899,3226.7,3225.8,0.03099155]
[1736467214809,0.7899,3226.7,3226.0,2.93015545]
[1736467215023,1.2899,3226.7,3225.7,2.93015545]
[1736467215382,1.0399,3226.7,3225.7,2.93015545]
[1736467215788,0.7899,3226.7,3226.0,2.93015545]
[1736467215980,0.7553,3227.3,3226.3,2.93015545]
[1736467216170,0.7553,3227.3,3226.6,2.93015545]
[1736467216476,0.25,3227.6,3226.7,0.0309835]
[1736467216641,1.0053,3227.7,3226.9,2.93015545]
[1736467216932,0.7553,3228.0,3227.2,2.93015545]
[1736467217131,0.25,3228.2,3227.8,2.93015545]
[1736467217289,0.7553,3228.7,3227.9,0.03097531]
[1736467217484,0.7553,3228.7,3227.8,2.93015545]
[1736467217685,0.5,3228.5,3227.4,0.7605]
[1736467217928,0.25,3228.3,3227.4,0.7605]
[1736467218081,0.25,3228.1,3227.2,2.93015545]
[1736467218286,0.7553,3228.0,3227.3,0.03097554]
[1736467218586,0.7553,3228.0,3227.2,2.93015545]
[1736467218936,0.25,3227.7,3227.3,0.03097785]
[1736467219262,0.25,3227.7,3226.9,4.42648372]
[1736467219403,0.25,3227.7,3227.0,0.03097941]
[1736467219905,0.25,3227.6,3227.0,0.03098056]
[1736467220248,0.25,3227.6,3226.9,4.42648372]
[1736467220451,0.25,3227.4,3227.0,0.03098221]
[1736467220650,0.25,3227.4,3226.9,4.42648372]
[1736467220951,1.066,3227.5,3227.0,0.03098352]
[1736467221134,0.25,3227.4,3227.0,0.03098352]
[1736467221331,0.816,3228.0,3227.2,2.93015545]
[1736467221555,0.816,3228.0,3227.3,0.03097777]
[1736467222562,1.066,3228.0,3227.3,0.03097777]
[1736467222843,0.5,3227.7,3227.3,0.0309785]
[1736467223050,0.25,3227.9,3227.3,0.0309785]
[1736467223253,0.05274061,3227.6,3227.4,0.7735]
[1736467223548,0.804,3228.6,3227.5,8.27112942]
[1736467223713,0.804,3228.6,3228.0,2.93015545]
[1736467223920,1.054,3229.2,3228.3,2.93015545]
[1736467224516,0.25,3228.9,3228.3,2.93015545]
[1736467224715,1.054,3229.2,3228.3,2.93015545]
[1736467225150,0.25,3229.4,3228.4,0.03096624]
[1736467225358,0.25,3229.5,3228.6,2.93015545]
[1736467225647,0.7729,3229.6,3229.2,2.93015545]
[1736467225832,0.7729,3229.6,3229.3,0.03096056]
[1736467226156,0.7729,3229.6,3229.0,0.824]
[1736467226358,0.05098261,3229.5,3229.1,0.0309617]
[1736467226555,0.7729,3229.6,3229.1,0.0309617]
[1736467226719,0.05098261,3229.4,3229.1,0.0309617]
[1736467227046,0.05098261,3229.3,3229.2,2.93015545]
[1736467227418,0.25,3229.9,3229.2,2.93015545]
[1736467227606,0.25,3229.7,3229.2,2.93015545]
[1736467227803,1.0312,3230.1,3228.0,8.89110436]
[1736467227804,0.30098261,3229.8,3228.6,3.74885545]
[1736467228161,0.30098261,3229.8,3224.3,1.55122449]
[1736467228162,0.25,3229.4,3228.2,3.70175545]
[1736467228306,0.25,3229.1,3228.2,3.70175545]
[1736467228701,0.25,3229.1,3228.3,0.03096485]
[1736467228933,0.25,3229.4,3228.5,2.93015545]
[1736467229149,0.25,3229.4,3228.6,0.03096444]
[1736467229358,0.05098261,3229.3,3228.6,0.03096444]
[1736467229519,1.0312,3229.6,3228.6,0.03096444]
[1736467229721,0.25,3229.3,3228.6,0.03096444]
[1736467230056,0.25,3229.2,3228.6,0.03096444]
[1736467230427,0.05312856,3229.1,3228.6,0.03096444]
[1736467230624,0.05312856,3229.1,3228.5,2.93015545]
[1736467230915,0.05312856,3229.1,3228.6,0.03096507]
[1736467231122,0.25,3229.1,3228.2,3.70175545]
[1736467231350,0.25,3229.2,3228.3,0.03096685]
[1736467231503,0.25,3229.3,3228.5,2.93015545]
[1736467231703,0.25,3229.2,3228.6,0.03096485]
[1736467231910,0.3030898,3229.2,3228.6,0.03096485]
[1736467232140,0.0530898,3229.2,3228.8,3.09707]
[1736467232337,0.3030898,3229.2,3228.9,0.03096497]
[1736467232655,1.0251,3229.1,3228.4,3.09742]
[1736467233024,0.5,3228.9,3228.4,3.09742]
[1736467233235,0.5,3228.9,3228.5,0.03096858]
[1736467233556,0.5,3228.9,3228.4,3.09742]
[1736467233707,0.05307042,3228.8,3228.4,3.09742]
[1736467235050,0.05307042,3228.8,3228.5,3.09737]
[1736467235240,0.05307042,3228.8,3228.5,3.12833902]
[1736467235551,0.5,3228.9,3228.5,3.09737]
[1736467235759,0.7751,3229.1,3227.9,2.93015545]
[1736467235760,0.7751,3229.1,3228.8,2.93015545]
[1736467235905,0.7751,3229.5,3228.9,0.03096334]
[1736467236112,0.7751,3229.5,3229.4,3.09655]
[1736467236406,0.7751,3229.9,3229.4,2.93015545]
[1736467236637,0.25,3230.1,3229.6,3.09633]
[1736467236952,0.25,3230.0,3229.6,3.09633]
[1736467237157,0.25,3230.0,3229.7,0.03095787]
[1736467237336,0.25,3229.8,3229.6,3.09633]
[1736467237538,0.25,3230.0,3229.7,3.09624]
[1736467237707,0.25,3230.0,3229.8,0.03095783]
[1736467237913,0.25,3230.0,3229.8,0.03095774]
[1736467238177,0.25,3230.0,3229.7,3.09624]
[1736467238383,0.25,3230.0,3229.8,0.03095776]
[1736467239177,0.25,3230.0,3229.8,3.09615]
[1736467239375,1.2751,3230.2,3229.9,0.03095755]
[1736467239537,1.2751,3230.2,3229.9,0.03095744]
[1736467240031,0.25,3230.0,3229.9,0.03095744]
[1736467240233,0.5,3230.0,3229.6,3.09633]
[1736467240483,0.25,3229.8,3229.7,0.03095787]
[1736467240640,0.25,3229.8,3229.6,3.09633]
[1736467241178,0.25,3229.8,3229.2,3.09668]
[1736467241179,0.5,3230.0,3229.7,0.03095803]
[1736467241335,0.25,3230.0,3229.7,3.09626]
[1736467241543,0.25,3229.8,3229.7,3.09626]
[1736467242240,0.25,3230.0,3229.7,3.09626]
[1736467242473,0.5,3230.0,3229.7,3.09626]
[1736467242656,0.25,3229.8,3229.7,3.09626]
[1736467242869,0.5,3229.8,3229.3,3.09656]
[1736467243069,0.5,3229.8,3229.4,3.09651]
[1736467243503,0.5,3229.8,3229.2,3.09674]
[1736467243704,0.25,3229.4,3229.0,3.09691]
[1736467244013,0.25,3229.6,3229.2,3.09672]
[1736467244193,0.25,3229.8,3229.3,0.03096173]
[1736467244400,1.0276,3230.0,3229.6,3.09627]
[1736467244615,0.7776,3230.0,3229.9,3.09607]
[1736467244907,1.2776,3230.5,3229.4,2.93015545]
[1736467245255,0.05213165,3230.4,3229.5,3.09645]
[1736467245456,0.05213165,3230.4,3229.7,2.93015545]
[1736467245682,0.7776,3230.5,3230.4,3.09559]
[1736467245882,0.25,3230.7,3230.4,3.09559]
[1736467246093,0.05213165,3230.5,3230.4,3.09559]
[1736467246403,0.25,3230.4,3230.1,3.10332]
[1736467246600,0.7862,3230.8,3229.7,3.92273]
[1736467246601,0.25,3230.2,3229.7,3.92273]
[1736467246803,0.25,3230.7,3228.9,11.83701]
[1736467246804,0.7725,3229.8,3229.1,3.0]
[1736467246973,0.05240286,3230.1,3229.4,0.8388]
[1736467247175,0.25,3230.3,3229.9,0.0075]
[1736467247382,0.25,3230.1,3230.0,3.09588]
[1736467247591,0.05253198,3230.2,3230.0,3.09588]
[1736467247764,0.25,3230.3,3229.9,0.03845617]
[1736467247959,0.25,3230.5,3230.2,0.015]
[1736467248207,0.25,3230.5,3230.2,0.0075]
[1736467248381,0.25,3230.3,3229.9,3.10348]
[1736467248581,0.25,3230.3,3230.0,0.03095425]
[1736467248763,0.25,3230.3,3230.1,0.0075]
[1736467248964,0.25,3230.0,3229.4,3.8313]
[1736467249162,0.25,3229.9,3229.6,3.09635]
[1736467249366,0.25,3230.0,3229.6,3.09635]
[1736467249676,0.25,3229.8,3229.3,3.09658]
[1736467250007,0.7967,3230.2,3228.8,2.93015545]
[1736467250008,0.25,3229.5,3229.0,3.09684]
[1736467250216,0.25,3229.4,3229.0,3.09684]
[1736467250602,0.25,3229.2,3228.6,4.02980485]
[1736467250804,1.0205,3228.9,3228.6,4.02980485]
[1736467251019,0.25,3228.7,3228.6,4.02980485]
[1736467253799,0.30103997,3228.7,3228.6,4.02980485]
[1736467254235,0.25,3228.7,3228.6,4.02980485]
[1736467257531,0.25,3228.7,3228.6,7.12711485]
[1736467260810,0.25,3228.7,3228.6,4.02980485]
[1736467261135,0.5,3228.0,3227.6,3.09823]
[1736467261338,0.5,3228.0,3227.7,0.03097721]
[1736467261495,0.5,3228.0,3227.1,0.8287]
[1736467261496,0.05097535,3227.9,3227.8,3.09805]
[1736467262037,0.25,3227.7,3227.4,3.09844]
[1736467262334,0.25,3228.8,3227.6,0.782]
[1736467262536,0.25,3228.9,3228.8,3.10454]
[1736467263035,0.04990894,3228.9,3228.8,3.11954]
[1736467263237,0.25,3230.0,3229.9,3.09607]
[1736467263595,0.04847185,3230.0,3229.9,3.09607]
[1736467263808,0.29847185,3230.0,3229.9,3.09607]
[1736467265235,0.29847185,3230.0,3229.9,3.11857]
[1736467265444,0.29847185,3230.0,3229.9,3.14952535]
[1736467265445,0.04847185,3230.0,3229.9,3.14952535]
[1736467265750,0.5,3230.2,3230.1,3.09587]
[1736467267227,0.25,3230.4,3230.3,3.09568]
[1736467267543,0.5,3230.6,3230.3,0.03095186]
[1736467267721,0.25,3230.4,3229.9,0.015]
[1736467267925,0.5,3230.2,3229.9,3.09606]
[1736467268243,0.5,3230.2,3230.0,3.09596]
[1736467268799,0.5,3230.0,3229.4,0.7959]
[1736467269010,0.5,3230.0,3229.9,3.09607]
[1736467269313,0.5,3230.0,3229.7,0.0225]
[1736467269942,0.5,3230.0,3229.9,3.09607]
[1736467270244,0.25,3230.0,3229.9,3.09607]
[1736467270547,0.25,3230.2,3230.1,3.09587]
[1736467270725,0.25,3230.2,3229.8,0.03095718]
[1736467270926,0.25,3230.2,3229.9,2.50919892]
[1736467271139,0.25,3230.2,3229.7,0.0225]
[1736467271140,0.5,3230.0,3229.7,3.11876]
[1736467271305,0.25,3229.5,3229.4,3.09649]
[1736467271513,0.25,3229.6,3229.5,3.09645]
[1736467271747,0.25,3229.4,3229.0,0.015]
[1736467272041,0.25,3229.4,3228.9,3.88333]
[1736467272042,0.25,3229.2,3228.9,3.09694]
[1736467272247,0.25,3229.2,3228.5,3.88377]
[1736467272248,0.25,3229.0,3228.5,0.7864]
[1736467272543,0.25,3228.8,3228.5,3.09737]
[1736467272851,0.25,3228.6,3228.2,3.0977]
[1736467273059,0.25,3228.6,3228.3,3.11253]
[1736467273352,0.25,3228.1,3228.0,3.09783]
[1736467273509,0.5,3228.1,3228.0,3.09783]
[1736467274625,0.25,3228.1,3228.0,3.12033]
[1736467275056,1.038,3229.3,3228.9,0.015]
[1736467275244,0.25,3229.4,3229.3,3.09664]
[1736467275555,0.5,3229.4,3229.3,3.09664]
[1736467275865,0.48262152,3229.2,3229.1,3.10432]
[1736467276165,0.48262152,3229.4,3229.3,3.09664]
[1736467276764,0.48262152,3229.4,3229.3,3.11914]
[1736467277118,0.48262152,3229.4,3229.3,3.09664]
[1736467277728,0.48262152,3229.4,3229.3,3.11914]
[1736467279960,0.48262152,3229.0,3228.3,0.7598]
[1736467280132,0.23262152,3228.8,3228.7,3.09722]
[1736467280342,0.25,3229.0,3228.9,3.09702]
[1736467280547,0.25,3229.0,3228.9,3.15048677]
[1736467280874,0.25,3229.0,3228.9,3.15048588]
[1736467281382,0.48262152,3229.4,3229.3,3.11164]
[1736467281549,0.23262152,3229.4,3229.3,3.11164]
[1736467281752,0.48262152,3229.4,3229.3,3.11164]
[1736467282349,0.23262152,3229.1,3229.0,3.09693]
[1736467282573,0.23262152,3228.7,3228.6,3.09731]
[1736467284374,0.23262152,3228.7,3228.6,3.10481]
[1736467285685,0.23262152,3228.7,3228.6,3.13577913]
[1736467286676,0.23262152,3228.7,3228.6,3.10481]
[1736467287393,0.23262152,3229.2,3229.1,3.11933]
[1736467287756,0.23262152,3228.7,3228.3,3.89457]
[1736467287967,0.23262152,3228.9,3228.8,3.10462]
[1736467288289,0.25,3229.1,3229.0,3.11943]
[1736467288889,0.25,3229.1,3229.0,3.10443]
[1736467289190,0.25,3229.1,3229.0,3.11193]
[1736467289497,0.23262152,3228.7,3228.6,3.09731]
[1736467289792,0.23262152,3228.9,3228.8,3.09712]
[1736467290223,0.25,3228.8,3228.6,3.09727]
[1736467290494,0.23262152,3228.5,3228.4,3.0975]
[1736467290852,0.23262152,3228.2,3227.9,0.7935]
[1736467291151,0.23262152,3228.2,3226.9,14.05]
[1736467291152,0.25,3228.9,3228.8,3.11212]
[1736467291466,0.23262152,3229.7,3229.6,3.09629]
[1736467292048,0.7503,3230.3,3228.9,0.5725]
[1736467292049,0.23262152,3229.5,3229.4,3.09653]
[1736467292248,0.23262152,3229.1,3229.0,3.09693]
[1736467292651,0.23262152,3229.1,3229.0,3.10443]
[1736467293296,0.23262152,3228.9,3228.8,3.09711]
[1736467294074,0.23262152,3228.9,3228.7,0.0075]
[1736467294486,0.23262152,3228.9,3228.7,3.13567744]
[1736467295253,0.23262152,3228.9,3228.8,3.09712]
[1736467297383,0.23262152,3229.2,3229.1,3.11933]
[1736467297592,3.09542,3230.6,3229.9,3.09601]
[1736467297593,0.773,3230.6,3229.9,3.09601]
[1736467297787,0.773,3230.6,3230.1,0.0225]
[1736467297994,0.0429441,3230.5,3230.1,0.0225]
[1736467298203,0.773,3230.6,3230.1,0.0225]
[1736467298401,0.9657007,3230.9,3230.1,0.0225]
[1736467298558,0.9657007,3230.9,3230.6,3.09539]
[1736467298761,0.0429441,3230.8,3230.6,3.09539]
[1736467298985,0.9657007,3230.9,3230.6,3.09539]
[1736467299396,0.0429441,3230.8,3230.7,3.0953]
[1736467299608,0.0429441,3230.8,3230.7,3.1028]
[1736467299772,0.1636007,3230.9,3230.8,3.1177]
[1736467299971,0.1636007,3230.9,3230.8,3.14864675]
[1736467300168,7e-07,3230.9,3230.8,4.47334675]
[1736467300603,7e-07,3230.9,3230.8,7.47334675]
[1736467300803,7e-07,3230.9,3230.8,7.4424]
[1736467304370,7e-07,3230.9,3230.1,0.7678]
[1736467304581,7e-07,3230.9,3230.5,3.09548]
[1736467305092,7e-07,3230.9,3230.6,0.0309487]
[1736467305423,0.04612164,3230.8,3230.6,0.0309487]
[1736467305714,7e-07,3230.9,3230.6,0.0309487]
[1736467306084,0.04612164,3230.8,3230.6,0.0309487]
[1736467306280,0.04612164,3230.8,3230.4,0.03095088]
[1736467306679,0.04612164,3230.8,3230.3,3.09567]
[1736467306879,0.04612164,3230.8,3230.4,0.03845088]
[1736467307176,0.04612164,3230.8,3230.4,0.03095088]
[1736467307378,0.8149,3230.7,3230.1,3.09585]
[1736467307724,0.8149,3230.5,3229.4,3.09648]
[1736467307918,0.39557396,3230.4,3229.4,3.09648]
[1736467308119,0.39557396,3230.4,3229.5,0.015]
[1736467308321,0.04542959,3230.3,3229.4,3.09648]
[1736467308475,0.04542959,3230.3,3228.7,3.86763]
[1736467308476,0.8308,3230.2,3228.7,3.86763]
[1736467308676,3.0959,3230.1,3229.0,3.09692]
[1736467309026,0.43809959,3230.0,3229.1,0.03096346]
[1736467309520,0.43809959,3230.0,3228.7,0.7705]
[1736467309521,3.0,3229.9,3228.8,3.1121]
[1736467309697,0.8308,3229.8,3228.8,3.1121]
[1736467309892,0.87555002,3229.8,3228.8,3.1121]
[1736467310302,0.87555002,3229.8,3229.1,0.0075]
[1736467310787,0.87555002,3229.8,3229.1,3.1043]
[1736467310982,0.87555002,3229.8,3229.1,0.0075]
[1736467311212,0.87555002,3229.8,3229.3,0.0075]
[1736467311398,0.87555002,3229.8,3229.3,0.03846194]
[1736467311897,0.87555002,3229.8,3229.5,3.10392]
[1736467312096,0.04475002,3229.8,3229.7,0.0075]
[1736467312284,0.04475002,3229.8,3229.7,3.11126]
[1736467312487,0.7563,3230.2,3229.7,0.015]
[1736467312682,0.7563,3230.2,3229.8,3.09612]
[1736467312885,0.0435269,3230.1,3229.8,3.09612]
[1736467313091,0.7563,3230.2,3229.7,0.0075]
[1736467313783,0.04375996,3230.1,3229.7,0.0075]
[1736467314939,0.04375996,3230.1,3229.7,3.09618]
[1736467315441,0.7563,3230.2,3229.7,3.09618]
[1736467315734,0.7563,3230.2,3229.8,3.09616]
[1736467315917,0.04375348,3230.1,3229.8,3.09616]
[1736467316295,0.7563,3230.2,3229.8,3.09616]
[1736467316501,0.04375348,3230.1,3229.8,3.09616]
[1736467317017,0.7563,3230.2,3229.8,3.09616]
[1736467317403,0.04375996,3230.1,3229.8,3.09616]
[1736467317600,0.04375996,3230.1,3229.7,3.09626]
[1736467318141,0.04375996,3230.1,3229.8,3.09616]
[1736467318518,0.04375996,3230.1,3229.4,0.0075]
[1736467318832,0.04375996,3230.1,3229.6,3.09633]
[1736467319005,0.7563,3230.2,3229.7,0.0075]
[1736467319200,0.0437729,3230.0,3229.3,3.09656]
[1736467319391,0.0437729,3230.0,3229.4,3.09654]
[1736467319592,0.7563,3230.2,3229.5,0.03096114]
[1736467319809,0.04376643,3229.9,3229.5,0.03096114]
[1736467320006,0.7563,3230.2,3229.5,0.03096114]
[1736467320250,0.8299,3230.0,3228.6,3.862]
[1736467320544,0.8299,3230.0,3228.8,0.015]
[1736467320844,0.04376643,3229.9,3229.2,3.09671]
[1736467321193,0.04376643,3229.9,3229.0,0.0075]
[1736467321504,0.04376643,3229.9,3229.0,3.10442]
[1736467321847,1.13427664,3229.8,3229.1,3.12777378]
[1736467322047,1.08427664,3229.8,3229.1,3.12777378]
[1736467322398,0.04376643,3229.7,3229.1,3.12777378]
[1736467322595,0.04376643,3229.7,3228.7,0.0075]
[1736467322822,0.04376643,3229.7,3228.7,0.0384651]
[1736467323027,1.08427664,3229.8,3228.8,0.015]
[1736467323415,0.0432679,3229.7,3229.2,3.09664]
[1736467323644,0.0432679,3229.7,3229.2,3.09665]
[1736467323807,0.0432679,3229.7,3229.2,3.12761377]
[1736467324021,0.7799,3229.8,3229.2,3.12761377]
[1736467324232,0.0432679,3229.6,3229.2,3.12761377]
[1736467324411,0.7799,3229.8,3229.2,3.12761377]
[1736467324824,0.0432679,3229.7,3229.2,3.12761377]
[1736467325455,0.0432679,3229.7,3229.2,3.09665]
[1736467326071,0.0432679,3229.7,3228.8,0.03846377]
[1736467326217,0.0432679,3229.7,3229.1,0.0075]
[1736467327573,0.0432679,3229.7,3228.8,0.0075]
[1736467327862,0.0432679,3229.7,3228.5,3.0974]
[1736467328068,0.7799,3229.8,3228.8,0.0225]
[1736467328267,0.7799,3229.8,3228.8,3.11955]
[1736467328417,0.04331323,3229.7,3228.8,3.11955]
[1736467328619,0.04331323,3229.7,3228.9,3.097]
[1736467328961,0.04331323,3229.7,3228.9,3.09694]
[1736467329169,0.42563455,3229.7,3228.9,3.09694]
[1736467329315,0.04331323,3229.7,3228.9,3.09694]
[1736467329751,0.04331323,3229.7,3229.0,3.09691]
[1736467329976,0.04331323,3229.7,3229.2,0.0075]
[1736467330264,0.04331323,3229.7,3229.3,0.0075]
[1736467330423,0.04331323,3229.7,3229.6,3.09635]
[1736467330616,0.04331323,3229.7,3229.0,0.7516]
[1736467330849,0.04331323,3229.7,3228.8,3.09712]
[1736467331051,0.04331323,3229.7,3229.0,3.0969]
[1736467331225,0.04331323,3229.7,3229.1,0.03096525]
[1736467331416,0.04331323,3229.7,3228.8,0.0225]
[1736467331777,0.04331323,3229.7,3229.0,3.10439]
[1736467331915,0.04331323,3229.7,3229.0,0.0075]
[1736467332115,0.04331323,3229.7,3229.0,3.10441]
[1736467332551,0.04331323,3229.7,3229.1,0.03096526]
[1736467332959,0.04331323,3229.7,3229.6,3.11135]
[1736467333159,0.7724,3230.2,3229.7,0.015]
[1736467333455,0.7724,3230.8,3230.0,3.09589]
[1736467333642,0.7724,3230.8,3229.8,0.03845628]
[1736467333643,0.7724,3230.8,3230.1,0.03095538]
[1736467333849,0.04176618,3230.7,3230.4,3.0955]
[1736467334046,0.04176618,3230.7,3230.4,0.0075]
[1736467334256,7e-07,3230.9,3230.8,3.0952]
[1736467334433,7e-07,3230.9,3230.8,3.1177]
[1736467334636,0.04176688,3230.9,3230.8,3.9276]
[1736467334979,7e-07,3230.9,3230.8,3.1027]
[1736467335262,7e-07,3230.9,3230.8,3.1177]
[1736467336033,7e-07,3230.9,3230.8,3.69864506]
[1736467336217,7e-07,3230.9,3230.8,7.50804506]
[1736467336429,7e-07,3230.9,3230.8,11.01888598]
[1736467337957,7e-07,3230.9,3230.8,7.4771]
[1736467341372,7e-07,3230.9,3230.8,3.9271]
[1736467341581,7e-07,3230.9,3230.8,3.1102]
[1736467341875,7e-07,3230.9,3230.8,3.14114359]
[1736467343523,7e-07,3230.9,3230.8,3.90944359]
[1736467346032,7e-07,3230.9,3230.8,4.45944359]
[1736467346374,7e-07,3230.9,3230.8,8.00122957]
[1736467346576,7e-07,3230.9,3230.8,7.97028598]
[1736467346966,7e-07,3231.4,3231.3,3.09472]
[1736467347144,7e-07,3231.4,3231.3,7.46645747]
[1736467347343,0.41911668,3233.1,3231.4,3.5725]
[1736467347583,3.0,3233.2,3231.7,0.0075]
[1736467347884,0.0447579,3233.0,3231.9,0.0075]
[1736467348048,0.6541786,3233.1,3232.2,3.09384]
[1736467348245,0.6541786,3233.1,3232.3,3.09376]
[1736467348246,0.04549548,3232.9,3232.3,3.09376]
[1736467348452,0.6541786,3233.1,3232.1,3.10893]
[1736467348847,0.04549548,3232.8,3232.1,3.10893]
[1736467349182,0.04549548,3232.7,3232.1,3.10893]
[1736467349478,0.04549548,3232.7,3232.2,3.09386]
[1736467349677,0.6541786,3233.1,3232.2,3.09386]
[1736467349882,0.04563132,3232.6,3232.1,0.015]
[1736467350195,0.04563132,3232.5,3232.3,3.09376]
[1736467350764,0.04563132,3232.5,3232.1,3.10894]
[1736467351161,0.04563132,3232.5,3231.9,3.09411]
[1736467351782,0.04563132,3232.5,3232.0,0.0075]
[1736467353031,0.04563132,3232.5,3232.0,3.12497684]
[1736467353201,0.04563132,3232.5,3232.2,3.09385]
[1736467353586,0.76463132,3232.6,3232.0,0.0225]
[1736467353794,0.044065,3232.4,3232.0,0.0225]
[1736467354096,0.044065,3232.3,3232.0,0.0225]
[1736467354331,0.76463132,3232.6,3232.0,3.11655]
[1736467354535,0.04409087,3232.5,3232.0,3.11655]
[1736467355200,0.04409087,3232.5,3232.1,3.09395]
[1736467355834,0.04409087,3232.5,3232.0,0.0225]
[1736467356137,0.04409087,3232.5,3232.0,0.0075]
[1736467356297,0.04409087,3232.5,3232.0,3.09397]
[1736467356710,0.04409087,3232.5,3232.1,0.03093629]
[1736467356904,0.04409087,3232.5,3232.3,3.09376]
[1736467357087,0.04409087,3232.5,3232.4,3.13960329]
[1736467357293,0.761,3232.9,3232.4,0.03093329]
[1736467357633,0.04409087,3232.8,3232.2,3.09385]
[1736467357846,0.04409087,3232.8,3231.9,3.09413]
[1736467358024,0.761,3232.7,3231.9,3.09413]
[1736467358514,0.81609087,3232.6,3231.5,3.09452]
[1736467358719,0.81609087,3232.6,3231.6,3.09435]
[1736467358915,0.39095109,3232.5,3231.6,3.09435]
[1736467359139,0.772,3232.4,3231.6,3.09435]
[1736467359376,0.8161814,3232.4,3231.6,3.09435]
[1736467360487,0.8161814,3232.4,3231.1,0.7532]
[1736467360695,0.7639,3231.8,3230.4,0.7664]
[1736467360883,0.7639,3231.6,3230.1,0.7664]
[1736467361242,0.7639,3231.6,3230.9,3.0951]
[1736467361400,0.04399381,3231.5,3230.9,3.0951]
[1736467361582,0.04399381,3231.5,3230.2,3.11078]
[1736467361583,0.04399381,3231.5,3230.7,0.0075]
[1736467361947,0.7639,3231.4,3230.6,3.09538]
[1736467362854,0.7721,3231.2,3230.3,0.0075]
[1736467362994,0.7721,3231.2,3230.4,0.0075]
[1736467363346,0.7721,3231.2,3230.3,0.0075]
[1736467363347,0.04399381,3231.1,3230.3,0.0075]
[1736467363525,0.04399381,3231.1,3230.6,0.0075]
[1736467363739,0.7721,3231.2,3230.6,0.0075]
[1736467363937,0.04399381,3231.1,3230.3,3.09565]
[1736467364099,0.43507719,3231.1,3229.7,0.7953]
[1736467364295,0.8031,3231.0,3229.7,0.7953]
[1736467364541,0.04399381,3231.1,3229.4,0.7953]
[1736467364542,0.8031,3230.7,3229.4,0.7953]
[1736467364746,0.8031,3230.7,3229.7,0.03095761]
[1736467364747,0.04315248,3230.6,3229.7,0.03095761]
[1736467364926,0.04315248,3230.6,3230.0,3.09595]
[1736467365116,0.04315248,3230.6,3230.2,0.0075]
[1736467365313,0.04315248,3230.6,3230.2,3.10328]
[1736467365520,0.04171406,3230.5,3230.2,3.10328]
[1736467365835,0.78437512,3230.7,3230.0,0.0225]
[1736467366142,0.78437512,3230.7,3230.2,0.0075]
[1736467366320,0.0402319,3230.6,3230.2,0.0075]
[1736467366509,0.0402319,3230.6,3230.2,3.10327]
[1736467367140,0.0402319,3230.6,3230.5,3.10299]
[1736467367341,3.54178598,3232.0,3230.1,0.7865]
[1736467367548,3.0,3231.3,3230.1,0.7865]
[1736467367886,3.0,3231.5,3230.3,0.0075]
[1736467368090,3.0,3231.5,3230.7,3.09526]
[1736467368091,0.04035493,3231.2,3230.7,3.09526]
[1736467368384,0.04035493,3231.1,3230.8,0.03094887]
[1736467368584,0.8166,3231.0,3230.7,3.10279]
[1736467368889,0.8166,3231.0,3230.7,3.13373891]
[1736467369082,0.04035493,3230.9,3230.7,3.10279]
[1736467369488,0.8166,3231.0,3230.7,3.10279]
[1736467369797,0.04035493,3230.9,3230.7,3.10279]
[1736467370148,0.8166,3231.0,3230.7,3.10279]
[1736467370578,0.04035493,3230.9,3230.7,3.10279]
[1736467370957,0.8166,3231.0,3230.7,3.10279]
[1736467371441,0.04035493,3230.9,3230.7,3.10279]
[1736467371873,0.8166,3231.0,3230.6,0.015]
[1736467372043,0.8166,3231.0,3230.6,3.11035]
[1736467372264,0.04063332,3230.9,3230.6,0.015]
[1736467372458,0.04063332,3230.9,3230.7,3.0953]
[1736467372881,0.8166,3231.0,3230.6,0.015]
[1736467373088,0.8166,3231.0,3230.6,3.14125935]
[1736467373388,0.04063332,3230.9,3230.4,3.09556]
[1736467374187,0.04063332,3230.9,3230.5,0.0075]
[1736467374391,0.04063332,3230.9,3230.4,3.09556]
[1736467374593,0.04063332,3230.9,3229.5,3.09641]
[1736467374594,0.7641,3230.5,3229.5,3.09641]
[1736467374886,0.7641,3230.3,3229.3,3.0966]
[1736467375094,0.7641,3230.3,3229.4,3.09654]
[1736467375601,0.04037436,3230.2,3229.5,0.0075]
[1736467375767,0.04037436,3230.2,3229.4,3.09654]